[Event "*** Titled Tuesday Blitz"]
[Site "Chess.com"]
[Date "2021.03.30"]
[Round "4"]
[White "adricalderon8"]
[Black "ckgchess"]
[Result "1-0"]
[WhiteElo "2514"]
[BlackElo "2691"]
[TimeControl "180+1"]
[EndTime "10:38:59 PDT"]
[Termination "adricalderon8 won on time"]

1. Nf3 {[%clk 0:02:53.6]} 1... g6 {[%clk 0:02:57.6]} 2. e4 {[%clk 0:02:53.3]}
2... c5 {[%clk 0:02:57.6]} 3. d4 {[%clk 0:02:52.8]} 3... cxd4 {[%clk 0:02:58.5]}
4. Nxd4 {[%clk 0:02:53.6]} 4... Bg7 {[%clk 0:02:58.6]} 5. c4 {[%clk 0:02:53.6]}
5... Nc6 {[%clk 0:02:59.1]} 6. Be3 {[%clk 0:02:53.4]} 6... Nf6 {[%clk
0:02:59.5]} 7. Nc3 {[%clk 0:02:53.3]} 7... O-O {[%clk 0:03:00.1]} 8. Be2 {[%clk
0:02:53.5]} 8... e6 {[%clk 0:03:00.6]} 9. O-O {[%clk 0:02:52.8]} 9... d5 {[%clk
0:03:01.1]} 10. cxd5 {[%clk 0:02:50.7]} 10... exd5 {[%clk 0:03:02]} 11. Nxc6
{[%clk 0:02:50.5]} 11... bxc6 {[%clk 0:03:02.1]} 12. e5 {[%clk 0:02:51.1]} 12...
Ne8 {[%clk 0:03:01.2]} 13. f4 {[%clk 0:02:50.5]} 13... Nc7 {[%clk 0:02:59.3]}
14. Bc5 {[%clk 0:02:43.4]} 14... Re8 {[%clk 0:02:58.8]} 15. Rc1 {[%clk
0:02:38.3]} 15... Ne6 {[%clk 0:02:54.8]} 16. Bd6 {[%clk 0:02:37.8]} 16... Qb6+
{[%clk 0:02:26.5]} 17. Kh1 {[%clk 0:02:36.7]} 17... Qxb2 {[%clk 0:02:26.6]} 18.
Na4 {[%clk 0:02:36.8]} 18... Qxa2 {[%clk 0:02:23]} 19. Ra1 {[%clk 0:02:32.6]}
19... Qxa1 {[%clk 0:02:18]} 20. Qxa1 {[%clk 0:02:30.2]} 20... g5 {[%clk
0:02:08.5]} 21. f5 {[%clk 0:02:27.6]} 21... Nf4 {[%clk 0:02:08.5]} 22. Bd1
{[%clk 0:02:05.6]} 22... Bxf5 {[%clk 0:02:07.7]} 23. Nc5 {[%clk 0:02:03.2]}
23... Bg6 {[%clk 0:02:04.2]} 24. g3 {[%clk 0:01:53.7]} 24... Ne6 {[%clk
0:01:52]} 25. Nxe6 {[%clk 0:01:51.8]} 25... Rxe6 {[%clk 0:01:52.9]} 26. Qa6
{[%clk 0:01:49.2]} 26... Rae8 {[%clk 0:01:22]} 27. Qxc6 {[%clk 0:01:47.5]} 27...
Bxe5 {[%clk 0:01:20.2]} 28. Bf3 {[%clk 0:01:11.9]} 28... Bxd6 {[%clk 0:01:10.6]}
29. Bxd5 {[%clk 0:01:12]} 29... Re1 {[%clk 0:00:36]} 30. Kg2 {[%clk 0:01:03.5]}
30... Bf8 {[%clk 0:00:22.6]} 31. Rf6 {[%clk 0:00:31.8]} 31... R8e2+ {[%clk
0:00:18.3]} 32. Kh3 {[%clk 0:00:31.9]} 32... Re5 {[%clk 0:00:13.9]} 33. Rxg6+
{[%clk 0:00:30.7]} 33... hxg6 {[%clk 0:00:10.7]} 34. Qxg6+ {[%clk 0:00:30.8]}
34... Kh8 {[%clk 0:00:10]} 35. Qh5+ {[%clk 0:00:29.8]} 1-0

[Event "*** Titled Tuesday Blitz"]
[Site "Chess.com"]
[Date "2021.03.30"]
[Round "4"]
[White "MatyChess1"]
[Black "djano"]
[Result "1-0"]
[WhiteElo "2619"]
[BlackElo "2442"]
[TimeControl "180+1"]
[EndTime "10:39:00 PDT"]
[Termination "MatyChess1 won by checkmate"]

1. e4 {[%clk 0:03:00.9]} 1... c5 {[%clk 0:02:59.7]} 2. Nf3 {[%clk 0:03:01.4]}
2... g6 {[%clk 0:02:59.1]} 3. g3 {[%clk 0:02:59.6]} 3... Bg7 {[%clk 0:02:58.8]}
4. Bg2 {[%clk 0:03:00.1]} 4... Nf6 {[%clk 0:02:58.4]} 5. d3 {[%clk 0:02:53.4]}
5... O-O {[%clk 0:02:54.9]} 6. O-O {[%clk 0:02:54]} 6... Nc6 {[%clk 0:02:55.3]}
7. Re1 {[%clk 0:02:53.8]} 7... d6 {[%clk 0:02:52.8]} 8. c3 {[%clk 0:02:53.3]}
8... Rb8 {[%clk 0:02:52.5]} 9. h3 {[%clk 0:02:52]} 9... b5 {[%clk 0:02:52.7]}
10. d4 {[%clk 0:02:52.3]} 10... cxd4 {[%clk 0:02:36]} 11. cxd4 {[%clk
0:02:48.1]} 11... e5 {[%clk 0:02:29.2]} 12. d5 {[%clk 0:02:45.3]} 12... Ne7
{[%clk 0:02:26]} 13. Nc3 {[%clk 0:02:23.5]} 13... b4 {[%clk 0:02:20.5]} 14. Nb1
{[%clk 0:02:20.4]} 14... Nd7 {[%clk 0:02:06.9]} 15. Be3 {[%clk 0:02:18.2]} 15...
a5 {[%clk 0:02:03.1]} 16. Nbd2 {[%clk 0:02:11.5]} 16... Ba6 {[%clk 0:01:56.5]}
17. h4 {[%clk 0:01:52.2]} 17... h6 {[%clk 0:01:55.5]} 18. h5 {[%clk 0:01:49.8]}
18... g5 {[%clk 0:01:47.1]} 19. Qb3 {[%clk 0:01:10.8]} 19... f5 {[%clk
0:01:39.9]} 20. exf5 {[%clk 0:01:08.9]} 20... Nxf5 {[%clk 0:01:39.9]} 21. a3
{[%clk 0:01:09.1]} 21... bxa3 {[%clk 0:01:11.9]} 22. Qxa3 {[%clk 0:01:07.5]}
22... e4 {[%clk 0:01:06.8]} 23. Nxe4 {[%clk 0:01:06.7]} 23... Bxb2 {[%clk
0:01:05.9]} 24. Qxa5 {[%clk 0:01:06.9]} 24... Bxa1 {[%clk 0:01:05.8]} 25. Qxa6
{[%clk 0:00:57.9]} 25... Nxe3 {[%clk 0:01:03.6]} 26. Rxe3 {[%clk 0:00:52.5]}
26... Rb1+ {[%clk 0:00:59.4]} 27. Kh2 {[%clk 0:00:51.4]} 27... g4 {[%clk
0:00:49.5]} 28. Nh4 {[%clk 0:00:46.3]} 28... Be5 {[%clk 0:00:38.5]} 29. Ng6
{[%clk 0:00:34.6]} 29... Rf7 {[%clk 0:00:29.4]} 30. Qe2 {[%clk 0:00:29]} 30...
Nf6 {[%clk 0:00:21.8]} 31. Nxf6+ {[%clk 0:00:24.7]} 31... Qxf6 {[%clk
0:00:20.8]} 32. Qxg4 {[%clk 0:00:19.4]} 32... Qg5 {[%clk 0:00:17.3]} 33. Qc8+
{[%clk 0:00:10.8]} 33... Kg7 {[%clk 0:00:16.9]} 34. Qh8# {[%clk 0:00:10.7]} 1-0

[Event "*** Titled Tuesday Blitz"]
[Site "Chess.com"]
[Date "2021.03.30"]
[Round "4"]
[White "Orlov_Oleg"]
[Black "ErikRonka"]
[Result "1/2-1/2"]
[WhiteElo "2593"]
[BlackElo "2402"]
[TimeControl "180+1"]
[EndTime "10:39:01 PDT"]
[Termination "Game drawn by agreement"]

1. Nf3 {[%clk 0:03:00.9]} 1... d5 {[%clk 0:02:59.7]} 2. c4 {[%clk 0:02:58.9]}
2... c6 {[%clk 0:02:58.2]} 3. g3 {[%clk 0:02:51.1]} 3... Nf6 {[%clk 0:02:57.1]}
4. Bg2 {[%clk 0:02:52]} 4... Bg4 {[%clk 0:02:57.5]} 5. Ne5 {[%clk 0:02:50.5]}
5... Be6 {[%clk 0:02:57.1]} 6. cxd5 {[%clk 0:02:47.3]} 6... Bxd5 {[%clk
0:02:58]} 7. Nf3 {[%clk 0:02:43.5]} 7... c5 {[%clk 0:02:58.3]} 8. Nc3 {[%clk
0:02:43.3]} 8... Bc6 {[%clk 0:02:58.2]} 9. O-O {[%clk 0:02:43.7]} 9... e6 {[%clk
0:02:58.6]} 10. d4 {[%clk 0:02:42.6]} 10... Nbd7 {[%clk 0:02:54.6]} 11. Re1
{[%clk 0:02:35.2]} 11... cxd4 {[%clk 0:02:46.5]} 12. Qxd4 {[%clk 0:02:32.8]}
12... Bc5 {[%clk 0:02:38.3]} 13. Qc4 {[%clk 0:02:27.4]} 13... Rc8 {[%clk
0:02:30.3]} 14. Qh4 {[%clk 0:02:22.9]} 14... Qb6 {[%clk 0:02:13.7]} 15. e3
{[%clk 0:02:20.8]} 15... O-O {[%clk 0:01:55.5]} 16. Na4 {[%clk 0:02:14.7]} 16...
Qb4 {[%clk 0:01:39.7]} 17. Nc3 {[%clk 0:02:12.3]} 17... Qxh4 {[%clk 0:01:36.7]}
18. Nxh4 {[%clk 0:02:12.1]} 18... Bxg2 {[%clk 0:01:36.5]} 19. Nxg2 {[%clk
0:02:12.7]} 19... Rfd8 {[%clk 0:01:36.3]} 20. Nf4 {[%clk 0:02:10.9]} 20... Ne5
{[%clk 0:01:33.4]} 21. Kg2 {[%clk 0:02:10.6]} 21... Bb4 {[%clk 0:01:31.2]} 22.
Nfe2 {[%clk 0:02:10]} 22... Ne4 {[%clk 0:01:10.9]} 23. a4 {[%clk 0:02:10.8]}
23... Nd3 {[%clk 0:00:55.5]} 24. Rf1 {[%clk 0:02:09.5]} 24... Nxc3 {[%clk
0:00:45.9]} 25. Nxc3 {[%clk 0:01:56.8]} 25... Bxc3 {[%clk 0:00:46.8]} 26. bxc3
{[%clk 0:01:56]} 26... Rxc3 {[%clk 0:00:47.7]} 27. a5 {[%clk 0:01:53.3]} 27...
f6 {[%clk 0:00:35.5]} 28. e4 {[%clk 0:01:51.8]} 28... Nxc1 {[%clk 0:00:19]} 29.
Rfxc1 {[%clk 0:01:50.8]} 29... Rdc8 {[%clk 0:00:19.9]} 30. Rcb1 {[%clk
0:01:50.1]} 30... R8c7 {[%clk 0:00:18.6]} 31. Rb4 {[%clk 0:01:49.5]} 31... Kf7
{[%clk 0:00:18.6]} 32. Rab1 {[%clk 0:01:17.4]} 32... b6 {[%clk 0:00:19]} 33.
axb6 {[%clk 0:01:16.4]} 33... axb6 {[%clk 0:00:19.9]} 34. Rxb6 {[%clk 0:01:15]}
34... R3c4 {[%clk 0:00:20.3]} 35. Rb7 {[%clk 0:01:15.1]} 35... Rxb7 {[%clk
0:00:18.4]} 36. Rxb7+ {[%clk 0:01:16]} 36... Kg6 {[%clk 0:00:18.4]} 37. Kf3
{[%clk 0:01:16.6]} 37... e5 {[%clk 0:00:18.7]} 38. h4 {[%clk 0:01:15.8]} 38...
Rc3+ {[%clk 0:00:19]} 39. Kg2 {[%clk 0:01:15.5]} 39... h5 {[%clk 0:00:18.3]} 40.
Ra7 {[%clk 0:01:13.7]} 40... Rc4 {[%clk 0:00:18.3]} 41. Kf3 {[%clk 0:01:12]}
41... Rc3+ {[%clk 0:00:18.7]} 42. Ke2 {[%clk 0:01:12.6]} 42... Rc4 {[%clk
0:00:18.9]} 43. Kd3 {[%clk 0:01:12.5]} 43... Rd4+ {[%clk 0:00:18.9]} 44. Ke3
{[%clk 0:01:13.1]} 44... Rb4 {[%clk 0:00:19.3]} 45. f4 {[%clk 0:01:13.8]} 45...
Rb3+ {[%clk 0:00:19]} 46. Kf2 {[%clk 0:01:14.3]} 46... Rb2+ {[%clk 0:00:19.2]}
47. Kf3 {[%clk 0:01:14.2]} 47... Rb3+ {[%clk 0:00:19.3]} 48. Kg2 {[%clk
0:01:14.6]} 48... Rb4 {[%clk 0:00:16.9]} 49. f5+ {[%clk 0:01:13.9]} 49... Kh6
{[%clk 0:00:17.3]} 50. Ra8 {[%clk 0:01:11.9]} 50... Kh7 {[%clk 0:00:16]} 51. Kf3
{[%clk 0:01:12.8]} 51... Rb3+ {[%clk 0:00:16.1]} 52. Kg2 {[%clk 0:01:13]} 52...
Rb4 {[%clk 0:00:16.6]} 53. Kf3 {[%clk 0:01:13.1]} 53... Rb3+ {[%clk 0:00:17]}
54. Kf2 {[%clk 0:01:13.4]} 54... Rb4 {[%clk 0:00:17.3]} 55. Ke3 {[%clk
0:01:13.2]} 55... Rb3+ {[%clk 0:00:17.6]} 56. Kf2 {[%clk 0:01:13.1]} 56... Rb4
{[%clk 0:00:17.8]} 1/2-1/2

[Event "*** Titled Tuesday Blitz"]
[Site "Chess.com"]
[Date "2021.03.30"]
[Round "4"]
[White "Synctel"]
[Black "Michaelson_11"]
[Result "1-0"]
[WhiteElo "2018"]
[BlackElo "2237"]
[TimeControl "180+1"]
[EndTime "10:39:07 PDT"]
[Termination "Synctel won by resignation"]

1. e4 {[%clk 0:03:00.9]} 1... e6 {[%clk 0:02:56]} 2. d4 {[%clk 0:02:59.9]} 2...
d5 {[%clk 0:02:55.8]} 3. Nd2 {[%clk 0:03:00.5]} 3... c5 {[%clk 0:02:54.5]} 4.
Ngf3 {[%clk 0:02:59.8]} 4... Nc6 {[%clk 0:02:50.3]} 5. exd5 {[%clk 0:02:56.3]}
5... exd5 {[%clk 0:02:51.2]} 6. Bb5 {[%clk 0:02:56.3]} 6... Qe7+ {[%clk
0:02:51.1]} 7. Be2 {[%clk 0:02:40.7]} 7... Qc7 {[%clk 0:02:47.7]} 8. O-O {[%clk
0:02:33.5]} 8... Nf6 {[%clk 0:02:42.1]} 9. Bb5 {[%clk 0:02:09.6]} 9... Be6
{[%clk 0:02:30.1]} 10. Ne5 {[%clk 0:02:00.2]} 10... Bd6 {[%clk 0:02:24.1]} 11.
Ndf3 {[%clk 0:01:56]} 11... cxd4 {[%clk 0:02:18.5]} 12. Qxd4 {[%clk 0:01:34.1]}
12... O-O {[%clk 0:02:05]} 13. Nxc6 {[%clk 0:01:19.5]} 13... bxc6 {[%clk
0:02:05.9]} 14. Bd3 {[%clk 0:01:03.3]} 14... c5 {[%clk 0:01:55.7]} 15. Qh4
{[%clk 0:01:03.1]} 15... c4 {[%clk 0:01:37]} 16. Be2 {[%clk 0:01:00.8]} 16...
Ne4 {[%clk 0:01:23.5]} 17. c3 {[%clk 0:00:51.6]} 17... f6 {[%clk 0:00:53.6]} 18.
Nd4 {[%clk 0:00:38.8]} 18... Bd7 {[%clk 0:00:31.2]} 19. f3 {[%clk 0:00:36.2]}
19... Nc5 {[%clk 0:00:17.8]} 20. Be3 {[%clk 0:00:22.6]} 20... Rae8 {[%clk
0:00:16.5]} 21. Bf2 {[%clk 0:00:22.7]} 21... Be5 {[%clk 0:00:11.1]} 22. Rfe1
{[%clk 0:00:21]} 22... g5 {[%clk 0:00:10.1]} 23. Qh6 {[%clk 0:00:20.2]} 23...
Bc8 {[%clk 0:00:08.6]} 24. Bf1 {[%clk 0:00:18.1]} 24... Qg7 {[%clk 0:00:05.1]}
25. Qxg7+ {[%clk 0:00:17.8]} 25... Kxg7 {[%clk 0:00:06]} 26. Rad1 {[%clk
0:00:16.8]} 26... Bb7 {[%clk 0:00:03.9]} 27. Nf5+ {[%clk 0:00:11.8]} 27... Kg6
{[%clk 0:00:04.2]} 28. Bxc5 {[%clk 0:00:09.4]} 28... Kxf5 {[%clk 0:00:04.5]} 29.
Bxf8 {[%clk 0:00:09.6]} 29... Rxf8 {[%clk 0:00:05.4]} 30. g3 {[%clk 0:00:08.3]}
30... Rc8 {[%clk 0:00:03.3]} 31. Bh3+ {[%clk 0:00:07.7]} 1-0

[Event "*** Titled Tuesday Blitz"]
[Site "Chess.com"]
[Date "2021.03.30"]
[Round "4"]
[White "MasterKroket"]
[Black "ARMQUEEN"]
[Result "1-0"]
[WhiteElo "2517"]
[BlackElo "2301"]
[TimeControl "180+1"]
[EndTime "10:39:10 PDT"]
[Termination "MasterKroket won by checkmate"]

1. d4 {[%clk 0:03:00.9]} 1... Nf6 {[%clk 0:02:58]} 2. c4 {[%clk 0:03:01.4]} 2...
c5 {[%clk 0:02:57.7]} 3. d5 {[%clk 0:03:01.3]} 3... e6 {[%clk 0:02:57.8]} 4. Nc3
{[%clk 0:03:01.6]} 4... exd5 {[%clk 0:02:58]} 5. cxd5 {[%clk 0:03:02.5]} 5... d6
{[%clk 0:02:58.8]} 6. e4 {[%clk 0:03:03.2]} 6... g6 {[%clk 0:02:58.4]} 7. Nf3
{[%clk 0:03:03.9]} 7... a6 {[%clk 0:02:58.1]} 8. a4 {[%clk 0:03:03.2]} 8... Bg4
{[%clk 0:02:58.2]} 9. Be2 {[%clk 0:03:00.8]} 9... Bxf3 {[%clk 0:02:58.3]} 10.
Bxf3 {[%clk 0:03:00.9]} 10... Bg7 {[%clk 0:02:58.6]} 11. O-O {[%clk 0:03:00.7]}
11... O-O {[%clk 0:02:58.8]} 12. Bf4 {[%clk 0:02:55.7]} 12... Qe7 {[%clk
0:02:57.5]} 13. Re1 {[%clk 0:02:48.9]} 13... Nbd7 {[%clk 0:02:56.2]} 14. a5
{[%clk 0:02:39.1]} 14... Ne5 {[%clk 0:02:53.3]} 15. Be2 {[%clk 0:02:32.3]} 15...
Nfd7 {[%clk 0:02:52.1]} 16. Qd2 {[%clk 0:02:22.9]} 16... h5 {[%clk 0:02:34.6]}
17. h3 {[%clk 0:02:12]} 17... Kh7 {[%clk 0:02:25.1]} 18. Be3 {[%clk 0:02:09.8]}
18... f5 {[%clk 0:02:09.8]} 19. f4 {[%clk 0:02:09.9]} 19... fxe4 {[%clk
0:01:43.1]} 20. fxe5 {[%clk 0:02:10]} 20... Qxe5 {[%clk 0:01:43.3]} 21. Rf1
{[%clk 0:02:03.9]} 21... Rae8 {[%clk 0:01:30.4]} 22. Kh1 {[%clk 0:01:49.9]}
22... Qg3 {[%clk 0:01:28.8]} 23. Bf4 {[%clk 0:01:42.2]} 23... Qh4 {[%clk
0:01:12.4]} 24. Bg5 {[%clk 0:01:30.4]} 24... Qg3 {[%clk 0:01:11]} 25. Qe3 {[%clk
0:01:21.5]} 25... Qe5 {[%clk 0:01:00.5]} 26. Bf4 {[%clk 0:01:20.3]} 26... Qe7
{[%clk 0:00:59.8]} 27. Bg5 {[%clk 0:01:19.6]} 27... Qe5 {[%clk 0:00:59.9]} 28.
Rxf8 {[%clk 0:01:01.6]} 28... Rxf8 {[%clk 0:00:58.4]} 29. Rf1 {[%clk 0:01:02.2]}
29... Nf6 {[%clk 0:00:29.6]} 30. Bf4 {[%clk 0:00:52]} 30... Qe7 {[%clk
0:00:27.9]} 31. Qg3 {[%clk 0:00:51]} 31... Ne8 {[%clk 0:00:25.8]} 32. Bg5 {[%clk
0:00:44.4]} 32... Rxf1+ {[%clk 0:00:24.1]} 33. Bxf1 {[%clk 0:00:45.3]} 33... Qf7
{[%clk 0:00:24.7]} 34. Qf4 {[%clk 0:00:43.5]} 34... Qd7 {[%clk 0:00:23.5]} 35.
Nxe4 {[%clk 0:00:38.5]} 35... Be5 {[%clk 0:00:23.1]} 36. Qf8 {[%clk 0:00:32.1]}
36... Ng7 {[%clk 0:00:17.3]} 37. Qe7 {[%clk 0:00:31.6]} 37... Qf5 {[%clk
0:00:16.4]} 38. Bd3 {[%clk 0:00:23.8]} 38... c4 {[%clk 0:00:14.7]} 39. Nf6+
{[%clk 0:00:21.8]} 39... Qxf6 {[%clk 0:00:14.8]} 40. Bxf6 {[%clk 0:00:21.6]}
40... cxd3 {[%clk 0:00:15]} 41. Qxg7# {[%clk 0:00:21.6]} 1-0

[Event "*** Titled Tuesday Blitz"]
[Site "Chess.com"]
[Date "2021.03.30"]
[Round "4"]
[White "Yurovskykh_Oleksandr"]
[Black "XDPS"]
[Result "0-1"]
[WhiteElo "2521"]
[BlackElo "2789"]
[TimeControl "180+1"]
[EndTime "10:39:14 PDT"]
[Termination "XDPS won by resignation"]

1. d4 {[%clk 0:03:00.9]} 1... d5 {[%clk 0:02:59.1]} 2. Bf4 {[%clk 0:03:00.4]}
2... e6 {[%clk 0:02:59]} 3. e3 {[%clk 0:03:00.6]} 3... Bd6 {[%clk 0:02:59.5]} 4.
Bg3 {[%clk 0:03:01.1]} 4... Nf6 {[%clk 0:02:59.7]} 5. Nf3 {[%clk 0:03:01.4]}
5... O-O {[%clk 0:03:00.2]} 6. Nbd2 {[%clk 0:03:01.5]} 6... c5 {[%clk
0:03:00.7]} 7. Bxd6 {[%clk 0:02:57.3]} 7... Qxd6 {[%clk 0:03:00.6]} 8. dxc5
{[%clk 0:02:57.9]} 8... Qxc5 {[%clk 0:03:00.7]} 9. c4 {[%clk 0:02:58.5]} 9...
Nc6 {[%clk 0:02:59.6]} 10. Rc1 {[%clk 0:02:57.8]} 10... Qe7 {[%clk 0:02:59]} 11.
cxd5 {[%clk 0:02:56.3]} 11... Nxd5 {[%clk 0:02:57.8]} 12. Bc4 {[%clk 0:02:56.4]}
12... Nb6 {[%clk 0:02:56.1]} 13. Be2 {[%clk 0:02:37.3]} 13... e5 {[%clk
0:02:56.3]} 14. O-O {[%clk 0:02:25.8]} 14... Be6 {[%clk 0:02:56.1]} 15. a3
{[%clk 0:02:18.3]} 15... Rfd8 {[%clk 0:02:53.4]} 16. Qc2 {[%clk 0:02:18.1]}
16... Rac8 {[%clk 0:02:51]} 17. Qe4 {[%clk 0:02:08.6]} 17... f5 {[%clk
0:02:46.5]} 18. Qb1 {[%clk 0:01:52.5]} 18... e4 {[%clk 0:02:45.2]} 19. Nd4
{[%clk 0:01:49]} 19... Nxd4 {[%clk 0:02:44.1]} 20. exd4 {[%clk 0:01:49.9]} 20...
Rxd4 {[%clk 0:02:43.3]} 21. Rxc8+ {[%clk 0:01:49.2]} 21... Nxc8 {[%clk
0:02:43.4]} 22. Rd1 {[%clk 0:01:45.9]} 22... Qd6 {[%clk 0:02:43]} 23. Nf1 {[%clk
0:01:41.5]} 23... Rxd1 {[%clk 0:02:42.4]} 24. Qxd1 {[%clk 0:01:41.1]} 24... Qxd1
{[%clk 0:02:42.4]} 25. Bxd1 {[%clk 0:01:42]} 25... Kf7 {[%clk 0:02:42.9]} 26. g3
{[%clk 0:01:39.6]} 26... Kf6 {[%clk 0:02:43.2]} 27. h4 {[%clk 0:01:34.1]} 27...
h6 {[%clk 0:02:42.9]} 28. Ne3 {[%clk 0:01:32.8]} 28... g5 {[%clk 0:02:41.9]} 29.
hxg5+ {[%clk 0:01:32.7]} 29... hxg5 {[%clk 0:02:42.8]} 30. Kf1 {[%clk
0:01:33.2]} 30... Ke5 {[%clk 0:02:43.1]} 31. Ke1 {[%clk 0:01:32.9]} 31... Nd6
{[%clk 0:02:43.6]} 32. Kd2 {[%clk 0:01:32.6]} 32... f4 {[%clk 0:02:42.6]} 33.
gxf4+ {[%clk 0:01:33.5]} 33... gxf4 {[%clk 0:02:42.8]} 34. Ng2 {[%clk
0:01:32.5]} 34... Bh3 {[%clk 0:02:31.7]} 35. Ne1 {[%clk 0:01:26.3]} 35... Nf5
{[%clk 0:02:19.2]} 36. Kc3 {[%clk 0:01:18.2]} 36... Nd4 {[%clk 0:02:11.8]} 37.
Nc2 {[%clk 0:01:13]} 37... Nxc2 {[%clk 0:02:05.6]} 38. Bxc2 {[%clk 0:01:10.3]}
38... e3 {[%clk 0:02:04.1]} 39. fxe3 {[%clk 0:01:09.9]} 39... f3 {[%clk
0:02:02.9]} 40. Kb4 {[%clk 0:00:51.9]} 40... f2 {[%clk 0:01:46.2]} 41. Bd3
{[%clk 0:00:51.3]} 41... Bf5 {[%clk 0:01:46.8]} 42. Bf1 {[%clk 0:00:46.7]} 42...
Ke4 {[%clk 0:01:47.1]} 43. Kc5 {[%clk 0:00:47.1]} 43... Kxe3 {[%clk 0:01:46.2]}
44. Kd6 {[%clk 0:00:46.5]} 44... Be4 {[%clk 0:01:18.5]} 45. Kc7 {[%clk
0:00:46.2]} 45... a6 {[%clk 0:01:18.4]} 46. Kb6 {[%clk 0:00:39]} 46... Kd2
{[%clk 0:01:17.6]} 47. b4 {[%clk 0:00:38.4]} 47... Ke1 {[%clk 0:01:13.2]} 48.
Bh3 {[%clk 0:00:34.5]} 48... Bf3 {[%clk 0:01:10.1]} 49. b5 {[%clk 0:00:24]}
49... axb5 {[%clk 0:01:09.5]} 50. Kxb5 {[%clk 0:00:24.2]} 50... Be2+ {[%clk
0:01:08.9]} 51. Kb6 {[%clk 0:00:24.6]} 51... Ba6 {[%clk 0:01:09.2]} 52. a4
{[%clk 0:00:21.1]} 52... f1=Q {[%clk 0:01:09.4]} 53. Bxf1 {[%clk 0:00:19]} 53...
Kxf1 {[%clk 0:01:10.3]} 54. Kc5 {[%clk 0:00:14.1]} 54... Ke1 {[%clk 0:01:11.2]}
55. a5 {[%clk 0:00:14.5]} 55... Kd2 {[%clk 0:01:12.1]} 56. Kb4 {[%clk
0:00:15.1]} 56... Kd3 {[%clk 0:01:12.2]} 57. Kb3 {[%clk 0:00:07.9]} 57... Kd4
{[%clk 0:01:10.6]} 58. Kb4 {[%clk 0:00:08.3]} 58... Kd5 {[%clk 0:01:11]} 59. Kb3
{[%clk 0:00:06.7]} 59... Kc5 {[%clk 0:01:11.1]} 60. Ka4 {[%clk 0:00:07.2]} 60...
Kc4 {[%clk 0:01:11.6]} 0-1

[Event "*** Titled Tuesday Blitz"]
[Site "Chess.com"]
[Date "2021.03.30"]
[Round "4"]
[White "PlotnikovPavel"]
[Black "Mazetovic"]
[Result "1-0"]
[WhiteElo "2513"]
[BlackElo "2682"]
[TimeControl "180+1"]
[EndTime "10:39:14 PDT"]
[Termination "PlotnikovPavel won on time"]

1. e4 {[%clk 0:03:00.9]} 1... Nf6 {[%clk 0:02:57.6]} 2. e5 {[%clk 0:03:00.8]}
2... Nd5 {[%clk 0:02:35.8]} 3. d4 {[%clk 0:03:00.3]} 3... d6 {[%clk 0:02:34.2]}
4. exd6 {[%clk 0:02:55.3]} 4... cxd6 {[%clk 0:02:33.5]} 5. Nf3 {[%clk
0:02:51.2]} 5... g6 {[%clk 0:02:32]} 6. Be2 {[%clk 0:02:51.3]} 6... Bg7 {[%clk
0:02:31.7]} 7. O-O {[%clk 0:02:48.3]} 7... O-O {[%clk 0:02:30.8]} 8. c4 {[%clk
0:02:47.1]} 8... Nb6 {[%clk 0:02:30.1]} 9. Be3 {[%clk 0:02:46.6]} 9... Bg4
{[%clk 0:02:29.5]} 10. Nbd2 {[%clk 0:02:31.7]} 10... Nc6 {[%clk 0:02:27]} 11. h3
{[%clk 0:02:25.4]} 11... Bxf3 {[%clk 0:02:16.8]} 12. Nxf3 {[%clk 0:02:26.3]}
12... d5 {[%clk 0:02:16]} 13. c5 {[%clk 0:02:19.3]} 13... Nc8 {[%clk 0:02:16.1]}
14. Rc1 {[%clk 0:02:12.9]} 14... e6 {[%clk 0:02:14.8]} 15. Qd2 {[%clk
0:02:08.8]} 15... N8e7 {[%clk 0:02:14.3]} 16. g4 {[%clk 0:02:04.5]} 16... f5
{[%clk 0:01:49.9]} 17. b4 {[%clk 0:01:57.1]} 17... a6 {[%clk 0:01:39.8]} 18. a4
{[%clk 0:01:56.2]} 18... Qc7 {[%clk 0:01:20.6]} 19. Bf4 {[%clk 0:01:53.2]} 19...
Qd8 {[%clk 0:00:56.2]} 20. g5 {[%clk 0:01:46.6]} 20... Re8 {[%clk 0:00:45.3]}
21. h4 {[%clk 0:01:34.7]} 21... a5 {[%clk 0:00:19.5]} 22. b5 {[%clk 0:01:32.6]}
22... Nb4 {[%clk 0:00:18.5]} 23. Be5 {[%clk 0:01:25.5]} 23... Bxe5 {[%clk
0:00:16.6]} 24. Nxe5 {[%clk 0:01:25]} 24... f4 {[%clk 0:00:17.2]} 25. Bg4 {[%clk
0:01:22.1]} 25... Nf5 {[%clk 0:00:14.7]} 26. Bxf5 {[%clk 0:01:21.1]} 26... exf5
{[%clk 0:00:14.4]} 27. Qxf4 {[%clk 0:01:19.5]} 27... Re6 {[%clk 0:00:12]} 28.
Rc3 {[%clk 0:01:10.7]} 28... Qe7 {[%clk 0:00:12.2]} 29. Kg2 {[%clk 0:01:08.8]}
29... Re8 {[%clk 0:00:13.1]} 30. Rh1 {[%clk 0:01:03.3]} 30... Qc7 {[%clk
0:00:09]} 31. Re1 {[%clk 0:00:49]} 31... Kg7 {[%clk 0:00:08.5]} 32. Re2 {[%clk
0:00:48.7]} 32... h6 {[%clk 0:00:08.3]} 33. Rg3 {[%clk 0:00:47.4]} 33... h5
{[%clk 0:00:08.3]} 34. Rge3 {[%clk 0:00:45.1]} 34... b6 {[%clk 0:00:08.2]} 35.
Nxg6 {[%clk 0:00:39.4]} 35... Qxf4 {[%clk 0:00:06.8]} 36. Nxf4 {[%clk
0:00:39.4]} 36... Re4 {[%clk 0:00:07.1]} 37. Nxh5+ {[%clk 0:00:38.2]} 37... Kg6
{[%clk 0:00:06.6]} 38. Nf4+ {[%clk 0:00:38.4]} 38... Kf7 {[%clk 0:00:05.5]} 39.
Rxe4 {[%clk 0:00:36.5]} 39... dxe4 {[%clk 0:00:05.1]} 40. c6 {[%clk 0:00:34.8]}
40... Ke7 {[%clk 0:00:04.2]} 41. d5 {[%clk 0:00:32.9]} 41... Kd6 {[%clk
0:00:04.2]} 42. g6 {[%clk 0:00:32.7]} 42... Ke5 {[%clk 0:00:03.4]} 43. Kg3
{[%clk 0:00:32.1]} 1-0